Cogmind - Beta 14 @@@ ROGUE MODE // 2024.12.02 @ 20:42:46 Player: UnderDoug Result: Destroyed by Y-45 Defender with Heavy Assault Rifle Performance ------------- Evolutions (1) 500 Regions Visited (2) 400 Robots Destroyed (84) 420 Value Destroyed (2121) 2121 Prototype IDs (3) 60 Alien Tech Used (0) 0 Bonus (225) 225 TOTAL SCORE: 3726 Bonus ------- High Alert Combat Kills 225 Cogmind --------- Core Integrity 0/400 Matter 231/300 Energy 265/265 System Corruption 0% Temperature Cool (9) Movement Walking (190) Ox1 Location -9/Materials Parts ------- > --- POWER (1) -------- Reinforced Ion Engine > --- PROPULSION (4) --- Aluminum Leg Improved Aluminum Leg Improved Aluminum Leg > --- UTILITY (2) ------ Large Storage Unit Light Armor Plating > --- WEAPON (2) ------- High-powered Shotgun High-powered Shotgun > --- INVENTORY (15) --- Light Ion Engine Improved Ion Engine Aluminum Leg Large Storage Unit Light Armor Plating Light Assault Rifle Shotgun Improved Assault Rifle High-powered Shotgun High-powered Shotgun Rocket Launcher Mini Grenade Launcher Heavy Flail Katana Peak State ------------ > --- POWER ------------ Heavy Ion Engine > --- PROPULSION ------- Aluminum Leg Aluminum Leg Improved Aluminum Leg Improved Aluminum Leg > --- UTILITY ---------- Large Storage Unit Light Armor Plating > --- WEAPON ----------- High-powered Shotgun High-powered Shotgun > --- INVENTORY -------- Light Ion Engine Improved Ion Engine Reinforced Ion Engine Aluminum Leg Large Storage Unit Light Armor Plating Light Assault Rifle Shotgun Improved Assault Rifle High-powered Shotgun High-powered Shotgun Rocket Launcher Mini Grenade Launcher Heavy Flail Katana [Rating: 20] Favorites ----------- Power Light Nuclear Core Engine Light Ion Engine Power Core Light Nuclear Core Propulsion Aluminum Leg Treads Improved Treads Leg Aluminum Leg Utility Large Storage Unit Device Improved Heat Sink Storage Large Storage Unit Protection Light Armor Plating Weapon Heavy EM Pulse Gun Energy Gun Heavy EM Pulse Gun Ballistic Gun High-powered Shotgun Launcher Grenade Launcher Special Weapon Mining Laser Impact Weapon Mace Build | -11 -10 -9 ------- Run | Yrd Mat Mat Slots Evolved 2 | . . 2 Power . | . . . Propulsion 2 | . . 2 Utility . | . . . Weapon . | . . . Parts Attached 58 | 8 15 35 Power 10 | 2 3 5 Engine 8 | 2 1 5 Core 2 | . 2 . Reactor . | . . . Propulsion 18 | 2 2 14 Treads 3 | . . 3 Leg 15 | 2 2 11 Wheel . | . . . Hover . | . . . Flight . | . . . Utility 7 | 2 3 2 Device 3 | 1 2 . Storage 3 | 1 1 1 Processor . | . . . Hackware . | . . . Protection 1 | . . 1 Artifact . | . . . Weapon 23 | 2 7 14 Energy Gun 9 | . 6 3 Energy Cannon . | . . . Ballistic Gun 9 | 2 . 7 Ballistic Cannon . | . . . Launcher 3 | . 1 2 Special Weapon 1 | . . 1 Impact Weapon 1 | . . 1 Slashing Weapon . | . . . Piercing Weapon . | . . . Special Melee Weapon . | . . . Unidentified Prototypes 1 | . . 1 Corrupted Parts 2 | . 2 . System Corruption 12 | . 12 . Parts Lost 23 | . 5 18 Power 3 | . 1 2 Propulsion 11 | . 1 10 Utility 2 | . 1 1 Weapon 7 | . 2 5 Highest Loss Streak 7 | . 4 7 To Critical Strikes . | . . . Average Slot Usage (%) 90 | . 97 85 Engine 6 | . 1 9 Core 5 | . 12 1 Treads 1 | . . 2 Leg 29 | . 27 30 Device 6 | . 13 2 Storage 13 | . 14 12 Protection 3 | . . 4 Energy Gun 11 | . 22 5 Ballistic Gun 9 | . 4 12 Impact Weapon 1 | . . 1 Peak Build Rating 20 | 9 14 20 Average Rating 13 | 5 12 13 On Entrance 7 | . 9 14 Naked Turns . | . . . Heaviest Build 49 | 13 32 49 Greatest Support 46 | 20 20 46 Greatest Overweight (x) 8 | 3 3 8 Average Overweight (x) . | . . . Largest Inventory Capacity 15 | 8 15 15 Average Capacity 14 | 7 13 15 Most Carried 15 | 8 15 15 Average Carried 10 | 4 12 10 Final Capacity 15 | 8 15 15 Final Carried 15 | 8 15 14 Class Distribution -------------------- 67% | Mutant 32% | Scavenger-Mutant Dominant Class ---------------- Mutant | -10/Materials Scavenger-Mutant | -9/Materials Resources | -11 -10 -9 ----------- Run | Yrd Mat Mat Matter Collected 1311 | 290 177 844 Remotely . | . . . Salvage Created 2471 | 104 646 1721 Parts 151 | 6 34 111 Haulers Intercepted 1 | . . 1 Recyclers Shooed 2 | . . 2 Parts Field Recycled . | . . . Retrieved Matter . | . . . Parts Self-Destructed . | . . . Prevented . | . . . Kills | -11 -10 -9 ------- Run | Yrd Mat Mat Combat Hostiles Destroyed 60 | . 15 45 Guns 39 | . 14 25 Cannons 1 | . . 1 AOE 17 | . 1 16 Classes Destroyed 14 | 2 3 9 Worker 4 | . . 4 Builder 1 | . . 1 Tunneler 2 | 1 . 1 Hauler 1 | . . 1 Recycler 6 | 1 1 4 Mechanic 1 | . . 1 Operator 1 | . . 1 Watcher 8 | . 3 5 Swarmer 16 | . 6 10 Grunt 31 | . 9 22 Brawler 2 | . . 2 Duelist 2 | . . 2 Protector 1 | . . 1 Sentry 8 | . . 8 Best Kill Streak 9 | 2 2 9 Combat Bots Only 5 | . 2 5 Max Kills in Single Turn 3 | 1 1 3 Gunslinging . | . . . Exploded 2 | . 1 2 Melee . | . . . Uniques/NPCs Destroyed . | . . . Combat | -11 -10 -9 -------- Run | Yrd Mat Mat Hostile Shots Fired 311 | . 105 206 Missed 81 | . 28 53 Damage Taken 2993 | . 870 2123 Core 589 | . 173 416 Absorbed by Shields . | . . . Regen/Repaired (Parts) 195 | . 116 79 Core Remaining (%) 65 | 100 30 . Volleys Fired 179 | 5 55 119 Largest 2 | 2 2 2 Hottest 101 | 40 90 101 Shots Fired 313 | 10 108 195 Gun 275 | 10 108 157 Cannon . | . . . Launcher 36 | . . 36 Special 2 | . . 2 Kinetic 105 | 10 40 55 Thermal 58 | . . 58 Explosive 36 | . . 36 Electromagnetic 114 | . 68 46 Robot Hit Streak 11 | 3 5 11 Robot Miss Streak 7 | 2 5 7 Penetration Max . | . . . Secondary Targets 5 | . 3 2 Max Gunslinging Chain 1 | . 1 1 Shots Hit Robots 187 | 5 56 126 Core Hits 125 | 3 24 98 Critical Kills 1 | . 1 . Critical Parts Destroyed 4 | . . 4 Critical Strikes 10 | . 2 8 Burn 3 | . . 3 Destroy 3 | . 1 2 Corrupt 2 | . 1 1 Smash 2 | . . 2 Melee Attacks 9 | . . 9 Impact 9 | . . 9 Slashing . | . . . Piercing . | . . . Sneak Attacks . | . . . Combat Hostiles . | . . . Follow-up Attacks . | . . . Damage Inflicted 4832 | 58 813 3961 Guns 2338 | 58 721 1559 Cannons . | . . . Explosions 2202 | . 80 2122 Melee 232 | . . 232 Ramming 12 | . 12 . Kinetic 887 | 58 207 622 Thermal 543 | . 80 463 Explosive 2122 | . . 2122 Electromagnetic 1036 | . 514 522 Impact 232 | . . 232 Slashing . | . . . Piercing . | . . . Highest Corruption 16 | . 16 . Average Corruption 14 | . 14 . Corruption Purged . | . . . Corruption Blocked . | . . . Effects 27 | . 27 . Message Errors 3 | . 3 . Matter Fused 7 | . 7 . Heat Flow Errors 5 | . 5 . Energy Discharges 6 | . 6 . Parts Rejected 1 | . 1 . Data Loss (minor) 1 | . 1 . Misfires 3 | . 3 . Alerts 1 | . 1 . Overload Shots . | . . . Overflow Damage 117 | . . 117 Projectiles . | . . . Explosions 38 | . . 38 Melee 79 | . . 79 Knockbacks 3 | . . 3 Impact 3 | . . 3 Kinetic . | . . . Secondary . | . . . Self-Inflicted Damage 242 | . 29 213 Shots 10 | . 1 9 Rammed . | . . . Targets Rammed 1 | . 1 . Kicked 1 | . 1 . Crushed . | . . . Highest Temperature 258 | . 258 92 Average Temperature 59 | . 84 21 Received Heat Transfer 1122 | . 276 846 Siege Activations . | . . . Robots Corrupted 3 | . . 3 Combat Hostiles 3 | . . 3 Parts Fried 5 | . 2 3 Impact Corruptions 5 | . . 5 Robots Melted . | . . . Combat Hostiles . | . . . Parts Melted 1 | . . 1 Heat Transferred 1448 | . 100 1348 Parts Sabotaged . | . . . Parts Stolen . | . . . Parts Stripped . | . . . Power Chain Reactions 2 | . 2 . Alert | -11 -10 -9 ------- Run | Yrd Mat Mat Peak Influence 739 | 10 327 739 Initial 40 | . 6 40 Average 340 | 3 156 450 Maximum Alert Level 3 | . 1 3 Low Security (%) 33 | 100 66 14 Level 1 19 | . 33 13 Level 2 45 | . . 71 Level 3 . | . . . Level 4 . | . . . Level 5 . | . . . High Security . | . . . Max Security . | . . . Squads Dispatched 9 | . 2 7 Investigation 2 | . . 2 Extermination . | . . . Reinforcement 4 | . 2 2 Assault 3 | . . 3 Garrison . | . . . Intercept . | . . . Searches Triggered . | . . . Construction Impeded . | . . . Haulers Reinforced . | . . . Active Scanning Responses . | . . . Cargo Convoy Interrupts . | . . . Stealth | -11 -10 -9 --------- Run | Yrd Mat Mat Distress Signals 4 | . 2 2 Communications Jammed . | . . . Distress Signals . | . . . Times Spotted 86 | . 27 59 Peak Tracking Total 5 | . 5 5 Tactical Retreats 4 | . 3 1 Traps | -11 -10 -9 ------- Run | Yrd Mat Mat Traps Triggered 7 | . 5 2 Indirectly . | . . . Trap Hack Attempts . | . . . Triggered . | . . . Disarmed . | . . . Reprogrammed . | . . . Reused . | . . . Traps Extracted . | . . . Installed . | . . . Triggered 1 | . 1 . Machines | -11 -10 -9 ---------- Run | Yrd Mat Mat Machines Disabled 7 | . 1 6 Max in Single Turn 2 | . 1 2 Machines Repaired . | . . . Machines Dismantled . | . . . Machines Sabotaged . | . . . Overloaded Fab Kills . | . . . Hacking | -11 -10 -9 --------- Run | Yrd Mat Mat Machines Accessed 13 | . 5 8 Terminals 9 | . 4 5 Fabricators . | . . . Repair Stations 3 | . 1 2 Recycling Units 1 | . . 1 Scanalyzers . | . . . Garrison Access . | . . . Total Hacks 34 | . 13 21 Successful 17 | . 6 11 Failed 17 | . 7 10 Catastrophic 2 | . 1 1 Database Lockouts . | . . . Manual . | . . . Terminals 23 | . 7 16 Fabricators . | . . . Repair Stations 10 | . 6 4 Recycling Units 1 | . . 1 Scanalyzers . | . . . Garrison Access . | . . . Terminal Hacks 10 | . 2 8 Prototype ID Bank 1 | . . 1 Emergency Access Points 3 | . . 3 Scanalyzer Index 1 | . . 1 Unreport Threat 1 | . . 1 Locate Traps 1 | . . 1 Dispatch Records 1 | . . 1 Transport Status 1 | . 1 . Zone Layout 1 | . 1 . Fabricator Hacks . | . . . Repair Station Hacks 6 | . 4 2 Scan Component 3 | . 2 1 Repair 3 | . 2 1 Recycling Unit Hacks 1 | . . 1 Report Inventory 1 | . . 1 Scanalyzer . | . . . Garrison Access Hacks . | . . . Unauthorized Hacks . | . . . Terminals . | . . . Fabricators . | . . . Repair Stations . | . . . Recycling Units . | . . . Scanalyzers . | . . . Garrison Access . | . . . Data Cores Recovered . | . . . Used . | . . . Hacking Detections 12 | . 4 8 Full Trace Events 1 | . 1 . Feedback Events . | . . . Feedback Blocked . | . . . Robot Schematics Acquired . | . . . Robots Built . | . . . Authchips . | . . . Time . | . . . Total Robot Build Rating . | . . . Part Schematics Acquired . | . . . Parts Built . | . . . Authchips . | . . . Time . | . . . Total Part Build Rating . | . . . Parts Repaired 3 | . 2 1 Time 74 | . 58 16 Parts Recycled . | . . . Recycled Matter . | . . . Retrieved Matter . | . . . Retrieved Components . | . . . Parts Scanalyzed . | . . . Part Schematics Acquired . | . . . Parts Damaged . | . . . Bothacking | -11 -10 -9 ------------ Run | Yrd Mat Mat Used RIF Installer . | . . . Robots Hacked . | . . . Non-combat . | . . . Combat . | . . . Robot Hacks Applied . | . . . Relay Couplers Released . | . . . Fabnet Peak Effective % . | . . . Robots Rewired . | . . . Allies Hacked . | . . . Hacks Repelled . | . . . Allies | -11 -10 -9 -------- Run | Yrd Mat Mat Total Allies . | . . . Largest Group . | . . . Highest-Rated Group . | . . . Highest-Rated Ally . | . . . Total Orders . | . . . Ally Attacks . | . . . Total Damage . | . . . Kills . | . . . Allies Corrupted . | . . . Allies Melted . | . . . Intel | -11 -10 -9 ------- Run | Yrd Mat Mat Robot Analysis Total . | . . . Derelict Logs Recovered . | . . . Drone Launches . | . . . Drone Recoveries . | . . . Exploration | -11 -10 -9 ------------- Run | Yrd Mat Mat Turns Passed 3853 | 87 1314 2452 Spaces Moved 1817 | 46 603 1168 Core 14 | 10 . 4 Treads 4 | . . 4 Legs 1799 | 36 603 1160 Wheels . | . . . Hover . | . . . Flight . | . . . Fastest Speed 50 | 50 120 120 Average Speed 163 | 120 169 162 Slowest Speed 450 | 200 330 450 Overloaded Moves . | . . . Propulsion Burnouts . | . . . Robots Hopped . | . . . Cave-ins Triggered . | . . . Exploration Rate (%) 62 | 3 93 92 Regions Visited 2 Branch Regions . Pre-discovered Areas . | . . . Known Exits Taken . | . . . Unknown Exits Taken 2 | 1 1 . Scrap Searched . | . . . Spaces Dug . | . . . Terrain Destroyed 169 | . 6 163 Melee . | . . . Projectile . | . . . AOE 169 | . 6 163 Terrain Rammed . | . . . Walls Destroyed . | . . . Machines Disabled . | . . . Actions | -11 -10 -9 --------- Run | Yrd Mat Mat Total 2372 | 66 796 1510 Wait 238 | . 98 140 Move 1815 | 45 602 1168 Hop . | . . . Pick Up 50 | 8 17 25 Fast Attach 18 | 7 5 6 Attach 24 | . 5 19 Detach 2 | . . 2 Swap 16 | 1 5 10 Drop 20 | . 8 12 Fire 179 | 5 55 119 Melee 9 | . . 9 Ram . | . . . Kick 1 | . 1 . Crush . | . . . Escape Stasis . | . . . Rewire . | . . . Trap . | . . . Miscellaneous . | . . . Route ------- -11/Scrapyard -10/Materials (discovered 4 exits: *Mat x3 / [*Min]) -9/Materials (discovered 4 exits: [*Mat x3] / [*Min]) History --------- Turn | Location | Event 43 | -11/Scrapyard | Discovered new exit (range 14) 88 | -11/Scrapyard | Entered Materials 310 | -10/Materials | Build established: Mutant 359 | -10/Materials | Discovered new exit (range 15) 557 | -10/Materials | Core integrity fell below 50% 581 | -10/Materials | Lost 4 parts (1p1n1u1w) 623 | -10/Materials | System corruption reached 10% 751 | -10/Materials | Discovered new exit (range 12) 958 | -10/Materials | Discovered new exit (range 9) 1163 | -10/Materials | Discovered new exit (range 6) 1200 | -10/Materials | Repaired Aluminum Leg 1233 | -10/Materials | Repaired Hvy. EM Pulse Gun 1402 | -10/Materials | Entered another Materials area 1402 | -9/Materials | Evolved 2 slots: Propulsion x2 1785 | -9/Materials | Discovered new exit (range 16) 1888 | -9/Materials | Build established: Scavenger-Mutant 1982 | -9/Materials | Discovered new exit (range 10) 2096 | -9/Materials | Lost 3 parts (2n1u) 2202 | -9/Materials | First assault squad dispatched 2248 | -9/Materials | Core integrity fell below 50% 2311 | -9/Materials | Lost 7 parts (1p3n3w) 2322 | -9/Materials | Core integrity fell below 20% 2364 | -9/Materials | Build established: Mutant 2923 | -9/Materials | Repaired Imp. Aluminum Leg 3276 | -9/Materials | Discovered new exit (range 14) 3434 | -9/Materials | Build established: Scavenger-Mutant 3695 | -9/Materials | Discovered new exit (range 16) 3854 | -9/Materials | Destroyed by Y-45 Defender with Heavy Assault Rifle Last Messages --------------- Scanalyzer disabled. Aluminum Leg destroyed. K-01 Serf collects debris. S-10 Pest destroyed. K-01 Serf collects debris. S-10 Pest destroyed. K-01 Serf collects debris. Acquired 15 matter. K-01 Serf collects debris. R-06 Scavenger collects Flight Unit. Acquired 5 matter. K-01 Serf collects debris. Acquired 9 matter. K-01 Serf collects debris. Triggered Alarm Trap. An alarm sounds. ALERT: Alarm triggered, dispatching investigation squad. Y-45 Defender suffers critical hit (Destroy). Destroyed Lgt. Treads. Map ----- +----------------------------------------------------+ | ######## #???????????????????????????????????? | | # #??# #???????????????????????????????????? | | ####??# #???????????????????????????????????? | | ##????# #?#########?????????????????????????? | | < ##????# # #?????????????????????????? | | ##????# # #?????????????????????????? | | #?????# # [ #?????????????????????????? | | #?????# # ??????????????????????????? | | ##????## # """ ????????????????????????????? | | ##????## # """ T"??????????????????????????? | | #?????## + """ ""#?????????????????????????? | | #?###### # #?????????????????????????? | | #?#"""## ###########?????????????????????????? | | ###"T"## #############???????????????????????? | | ??????????????????????? | | ??????????????????????? | | """" ! ??????????????????????? | | """" % #############???????????????????????? | | """" ###????????????????#####????????????? | | T ####????????????? #????????????? | | ###############??? #????????????? | | % #?? #????????????? | | +?? #????????????? | | ### T"#### #? #????????????? | | # ""## # ##########+####? #????????????? | | [ ###### # # #??#?# Y@ # #????????????? | | ! #??# # # #????# """ # #????????????? | | #??### # #????# """ + #????????????? | | " #???## ###????# """ #########?????????????? | | " #???## ##?????# #?????????????????????? | | ##????# #??????# = #?????????????????????? | | #?????# #??????########?????????????????????? | | #?????# ###########?????????????????????????? | | ####?????# #[ * #?????????????????????????? | | ?????????# # "S """ ########??????????????????? | | ??######?# # "" """ # [ #??????????????????? | | ??# # + "" """ # #??????????????????? | | ??# # # # """ #??????????????????? | | ??# + # # """ #??????????????????? | | ??# # # # """ #??????????????????? | | ??# / # # #? ???????????????????? | | ??# ?# ##############+####?????????????????? | | ??######?# % #?????????????????? | | ########## < #?????????????????? | | + #?????????????????? | | # ######+####################?????????????????? | | # ## ###??????????????????????????????? | | + ## ""#??????????????????????????????? | | ####### ""#??????????????????????????????? | | #?????# T"#??????????????????????????????? | +----------------------------------------------------+ Best States ------------- Heat Dissipation 42 Energy Generation 14 Energy Capacity 265 Matter Stores 300 Matter Capacity 300 Sight Range 16 Terrain Scan Range 16 Terrain Scan Density 10 Armor Coverage 150 Evasion (%) 55 Recoil Reduction 2 Item Schematics ----------------- None Robot Schematics ------------------ None Fabricated ------------ Nothing Alien Tech Used ----------------- None Achievements -------------- Significant Disruption Challenges ------------ None Game ------ Seed IonEnhancedMapper Manual? 0 Play Time 00:37:40 Cumulative 12.7 hours Start 2024.12.02 @ 01:09:19 End 2024.12.02 @ 20:42:46 Sessions 3 Manual Loads 0 Difficulty Rogue Special Mode None Game No. 17 Rogue 17 Adventurer 0 Explorer 0 Win Type - Total 0 Types 0/0/0/0/0/0/0/0/0 Lore% 7 Gallery% 17 Achievement% 16 Wizard Run 0 Options --------- Layout 1 ASCII 0 Keyboard 0 Movement Mouse Keybinds 0 Fullscreen 2 Font 24/Tamsyn Map View 50x35 Zoom Use 0% Tactical HUD 0 Map Filters NONE Filters NONE Steam 0 RUN: e40af433-94ce-4d02-9796-bbd384c7c3ed